bitfinex-derivatives/quotes_BTCF0:USTF0_20250728
["timestamp","ask_amount","ask_price","bid_price","bid_amount"]
[1753699656125,0.26451,118890.0,118880.0,1.03489563]
[1753699656625,0.31444,118890.0,118880.0,1.03489563]
[1753699657125,0.23353,118890.0,118880.0,1.03489563]
[1753699657726,0.23894,118900.0,118890.0,0.4554047]
[1753699657922,4e-05,118920.0,118910.0,0.1681864]
[1753699658124,0.1832815,118920.0,118910.0,1.92129176]
[1753699658317,0.12336,118920.0,118910.0,1.92129176]
[1753699659218,0.12336,118920.0,118910.0,1.92729176]
[1753699659617,0.19886,118920.0,118910.0,1.92729176]
[1753699659816,0.19886,118920.0,118910.0,1.92829176]
[1753699660018,0.26451,118920.0,118910.0,1.93629176]
[1753699660225,4e-05,118920.0,118910.0,1.93629176]
[1753699660613,4e-05,118920.0,118910.0,1.94226743]
[1753699660818,0.07554,118920.0,118910.0,1.94226743]
[1753699661220,0.14432327,118920.0,118910.0,1.94226743]
[1753699661426,0.14432327,118920.0,118910.0,1.93629176]
[1753699662124,0.18587327,118920.0,118910.0,1.68391664]
[1753699662524,0.06882327,118920.0,118910.0,1.68391664]
[1753699663419,0.06882327,118920.0,118910.0,1.70800677]
[1753699664430,0.06882327,118920.0,118910.0,1.7138701]
[1753699665330,0.06882327,118920.0,118910.0,1.68977997]
[1753699665840,0.06882327,118920.0,118910.0,1.68391664]
[1753699669431,0.06882327,118920.0,118910.0,1.68988235]
[1753699671132,0.14413327,118920.0,118910.0,1.68988235]
[1753699671727,0.06882327,118920.0,118910.0,1.68988235]
[1753699673529,0.06882327,118920.0,118910.0,1.94225747]
[1753699675530,0.06882327,118920.0,118910.0,1.68988235]
[1753699675830,0.06882327,118920.0,118910.0,1.7139344]
[1753699676431,0.06882327,118920.0,118910.0,1.96630952]
[1753699679831,0.06882327,118920.0,118910.0,1.7139344]
[1753699680431,0.06882327,118920.0,118910.0,1.96630952]
[1753699680732,0.06882327,118920.0,118910.0,1.7139344]
[1753699680928,0.06882327,118920.0,118910.0,1.96630952]
[1753699681127,0.15046372,118940.0,118920.0,0.06941368]
[1753699681334,0.27782372,118940.0,118930.0,1.36232834]
[1753699682435,0.32752372,118940.0,118930.0,1.36232834]
[1753699682635,0.32752372,118940.0,118930.0,1.36832834]
[1753699684028,0.20466372,118940.0,118930.0,1.37332834]
[1753699684235,0.34074803,118940.0,118930.0,1.37332834]
[1753699685836,0.40066953,118940.0,118930.0,1.37332834]
[1753699686633,0.45036953,118940.0,118930.0,1.37332834]
[1753699687140,0.45036953,118940.0,118930.0,0.97535834]
[1753699687437,0.45036953,118940.0,118930.0,1.65283834]
[1753699687937,0.45036953,118940.0,118930.0,1.40046322]
[1753699688643,0.39044803,118940.0,118930.0,1.40046322]
[1753699689940,0.06878803,118940.0,118930.0,1.65283834]
[1753699690239,0.3726914,118950.0,118930.0,1.46314667]
[1753699690439,0.3816215,118950.0,118940.0,0.75846224]
[1753699691238,0.5497513,118950.0,118940.0,0.75846224]
[1753699691833,0.4898298,118950.0,118940.0,0.75846224]
[1753699692028,0.49589027,118950.0,118940.0,0.76875224]
[1753699692235,0.49589027,118950.0,118940.0,0.78521224]
[1753699692536,0.4898298,118950.0,118940.0,0.78521224]
[1753699692733,0.38213969,118950.0,118940.0,0.78521224]
[1753699693743,0.55026949,118950.0,118940.0,0.78821224]
[1753699693937,0.4898298,118950.0,118940.0,0.78821224]
[1753699694138,0.55619762,118950.0,118940.0,0.78821224]
[1753699699746,0.66114634,118950.0,118940.0,0.78821224]
[1753699702242,0.91352146,118950.0,118940.0,0.003]
[1753699702449,1.6595521,118950.0,118940.0,0.003]
[1753699702650,1.6595521,118950.0,118930.0,0.6772]
[1753699702651,1.00838394,118940.0,118930.0,0.6772]
[1753699702851,0.5036478,118930.0,118920.0,0.2102024]
[1753699703047,0.503662,118920.0,118910.0,0.77951302]
[1753699703358,0.56406615,118920.0,118910.0,1.40925302]
[1753699703741,0.56993786,118920.0,118910.0,0.25237512]
[1753699703945,0.76190883,118920.0,118910.0,0.42056112]
[1753699704250,0.50953371,118920.0,118910.0,1.09772112]
[1753699704845,0.58504159,118920.0,118910.0,1.26017656]
[1753699705038,0.50953371,118920.0,118910.0,1.26017656]
[1753699705237,0.56989547,118920.0,118910.0,1.29120656]
[1753699705848,0.57289547,118920.0,118910.0,1.29120656]
[1753699715567,0.51253371,118920.0,118910.0,1.29120656]
[1753699725575,0.57289547,118920.0,118910.0,1.29120656]
[1753699726275,0.51253371,118920.0,118910.0,1.29120656]
[1753699727372,0.09383171,118920.0,118910.0,1.29120656]
[1753699727576,0.003,118920.0,118910.0,1.29120656]
[1753699728673,0.21652739,118930.0,118920.0,0.245792]
[1753699728674,0.3111506,118930.0,118920.0,0.245792]
[1753699728878,0.4642806,118930.0,118920.0,0.65973256]
[1753699729074,0.5139006,118930.0,118920.0,0.65973256]
[1753699730385,0.5444706,118930.0,118920.0,0.65973256]
[1753699731279,0.5484706,118930.0,118920.0,0.65973256]
[1753699733682,0.5484706,118930.0,118920.0,1.33653256]
[1753699735284,0.60883236,118930.0,118920.0,1.33653256]
[1753699735584,0.5484706,118930.0,118920.0,1.33653256]
[1753699739383,0.6239228,118930.0,118920.0,1.33653256]
[1753699741588,0.60881187,118930.0,118920.0,1.33653256]
[1753699742687,0.60881187,118930.0,118920.0,0.278432]
[1753699742989,0.60881187,118930.0,118920.0,1.29157256]
[1753699745391,0.5484706,118930.0,118920.0,1.29157256]
[1753699746087,0.88497116,118930.0,118920.0,0.09997]
[1753699746392,0.88497116,118930.0,118920.0,0.200992]
[1753699746692,0.88497116,118930.0,118920.0,0.03282]
[1753699747491,0.88497116,118930.0,118920.0,0.200992]
[1753699748190,0.94531243,118930.0,118920.0,0.250432]
[1753699748491,0.94531243,118930.0,118920.0,0.268142]
[1753699750496,0.94531243,118930.0,118920.0,0.250432]
[1753699750793,0.88497116,118930.0,118920.0,0.250432]
[1753699751289,0.6239228,118930.0,118920.0,0.268142]
[1753699751489,0.6239228,118930.0,118920.0,0.65973256]
[1753699751687,0.60882569,118930.0,118920.0,0.65973256]
[1753699751891,0.39862509,118930.0,118920.0,0.99623312]
[1753699752187,0.28865,118930.0,118920.0,0.99623312]
[1753699752491,0.4262378,118930.0,118920.0,0.99623312]
[1753699752998,0.24934509,118930.0,118920.0,0.99623312]
[1753699753694,0.41750289,118930.0,118920.0,0.99623312]
[1753699753897,0.41750289,118930.0,118920.0,0.65973256]
[1753699754094,0.48713289,118930.0,118920.0,0.65973256]
[1753699754394,0.5035178,118930.0,118920.0,0.65973256]
[1753699758195,0.56387289,118930.0,118920.0,0.65973256]
[1753699761698,0.56387289,118930.0,118920.0,0.323232]
[1753699761902,0.56387289,118930.0,118920.0,0.65973256]
[1753699762103,0.56387289,118930.0,118920.0,1.33601256]
[1753699762497,0.90037345,118930.0,118920.0,0.168172]
[1753699762699,0.90037345,118930.0,118910.0,0.3556667]
[1753699762700,0.447572,118920.0,118910.0,0.3556667]
[1753699762901,0.447572,118920.0,118910.0,1.0319067]
[1753699762902,0.493622,118920.0,118910.0,1.0319067]
[1753699765106,0.496622,118920.0,118910.0,1.0319067]
[1753699765994,0.55797709,118920.0,118910.0,1.0319067]
[1753699766399,0.89447765,118920.0,118910.0,0.9398361]
[1753699766706,0.89447765,118920.0,118910.0,0.9251361]
[1753699766910,0.83412256,118920.0,118910.0,0.9251361]
[1753699767408,0.497622,118920.0,118910.0,0.9251361]
[1753699767902,0.497622,118920.0,118910.0,0.9398361]
[1753699768102,0.497622,118920.0,118910.0,0.9477861]
[1753699770402,0.497622,118920.0,118910.0,0.9330861]
[1753699770603,0.497622,118920.0,118910.0,0.9397961]
[1753699771103,0.83412256,118920.0,118910.0,0.75691]
[1753699771312,0.89452805,118920.0,118910.0,0.70805]
[1753699772013,0.55802749,118920.0,118910.0,0.70805]
[1753699772215,0.89452805,118920.0,118910.0,0.03189]
[1753699773208,0.83412256,118920.0,118910.0,0.03189]
[1753699773608,0.89449875,118920.0,118910.0,0.03189]
[1753699774403,0.89449875,118920.0,118910.0,0.08075]
[1753699775804,0.83412256,118920.0,118910.0,0.08075]
[1753699776198,0.8944771,118920.0,118910.0,0.08075]
[1753699776909,0.8944771,118920.0,118910.0,0.2489361]
[1753699777210,0.83412256,118920.0,118910.0,0.08075]
[1753699777710,0.83412256,118920.0,118910.0,0.2489361]
[1753699777909,0.83412256,118920.0,118910.0,0.08075]
[1753699785221,0.89445939,118920.0,118910.0,0.08075]
[1753699785421,0.83412256,118920.0,118910.0,0.08075]
[1753699785719,0.83412256,118920.0,118910.0,0.03189]
[1753699786509,0.3014561,118910.0,118900.0,0.71781626]
[1753699786714,0.56131095,118910.0,118900.0,0.71781626]
[1753699787821,0.56531095,118910.0,118900.0,0.71781626]
[1753699788322,0.56535095,118910.0,118900.0,0.71781626]
[1753699788524,0.56535095,118910.0,118900.0,0.67576686]
[1753699789514,0.56535095,118910.0,118900.0,0.11024]
[1753699789721,0.5009802,118900.0,118890.0,0.3483929]
[1753699789928,0.56132505,118900.0,118890.0,0.71234346]
[1753699790325,0.5009802,118900.0,118890.0,0.71234346]
[1753699790926,0.51076257,118900.0,118890.0,0.71234346]
[1753699793729,0.57114307,118900.0,118890.0,0.71234346]
[1753699795334,0.51076257,118900.0,118890.0,0.71234346]
[1753699798728,0.51076257,118900.0,118890.0,0.62826671]
[1753699801634,0.51076257,118900.0,118890.0,0.88069052]
[1753699802837,0.57114307,118900.0,118890.0,0.88069052]
[1753699804538,0.57114307,118900.0,118890.0,0.62826671]
[1753699805432,0.57114307,118900.0,118890.0,0.88069052]
[1753699805629,0.57114307,118900.0,118890.0,0.62826671]
[1753699807139,0.51076257,118900.0,118890.0,0.62826671]
[1753699807541,0.51076257,118900.0,118890.0,0.65179841]
[1753699808748,0.57114307,118900.0,118890.0,0.62826671]
[1753699809144,0.51076257,118900.0,118890.0,0.65179886]
[1753699810447,0.51076257,118900.0,118890.0,0.60974536]
[1753699811647,0.51076257,118900.0,118890.0,1.28542536]
[1753699812546,0.57114307,118900.0,118890.0,1.26189321]
[1753699814749,0.82356688,118900.0,118890.0,1.26189321]
[1753699815150,0.82360688,118900.0,118890.0,1.26189321]
[1753699815848,0.57118307,118900.0,118890.0,1.26189321]
[1753699820751,0.51080257,118900.0,118890.0,1.2854415]
[1753699823554,0.5040202,118900.0,118890.0,1.2854415]
[1753699823855,0.5040202,118900.0,118890.0,1.53786531]
[1753699825354,0.5644007,118900.0,118890.0,1.51431702]
[1753699828455,0.5040202,118900.0,118890.0,1.51431702]
[1753699829451,0.07860271,118900.0,118890.0,1.51431702]
[1753699830155,0.24680291,118900.0,118890.0,1.51431702]
[1753699833160,0.3072253,118900.0,118890.0,1.51431702]
[1753699833457,0.23166259,118900.0,118890.0,1.51431702]
[1753699834161,0.06346239,118900.0,118890.0,1.51431702]
[1753699835164,0.00304,118900.0,118890.0,1.51431702]
[1753699835461,0.00304,118900.0,118890.0,1.53785529]
[1753699839267,0.1712402,118900.0,118890.0,1.53785529]
[1753699840968,0.1712402,118900.0,118890.0,1.51431702]
[1753699846469,0.1712402,118900.0,118890.0,1.53785195]
[1753699850068,0.69753401,118900.0,118890.0,0.60974814]
[1753699850267,0.74691401,118900.0,118890.0,1.25741814]
[1753699851773,0.8073364,118900.0,118890.0,1.23388321]
[1753699851973,0.55491259,118900.0,118890.0,1.23388321]
[1753699852165,0.55491259,118900.0,118890.0,0.10459]
[1753699852363,0.2980944,118890.0,118880.0,0.3488976]
[1753699852672,0.74388821,118890.0,118880.0,1.03564166]
[1753699852863,0.12988,118890.0,118880.0,1.14804166]
[1753699853060,0.2980944,118890.0,118880.0,1.65288928]
[1753699853270,0.2980944,118890.0,118880.0,1.44392298]
[1753699853478,0.2980944,118890.0,118880.0,1.49311298]
[1753699853677,0.3000944,118890.0,118880.0,1.49311298]
[1753699853880,0.3000944,118890.0,118880.0,1.57331298]
[1753699854081,0.36643942,118890.0,118880.0,1.61297222]
[1753699854784,0.53143942,118890.0,118880.0,1.61297222]
[1753699855369,0.59186181,118890.0,118880.0,1.61297222]
[1753699856181,0.53143942,118890.0,118880.0,1.61297222]
[1753699856579,0.59186181,118890.0,118880.0,1.61297222]
[1753699856980,0.57085181,118890.0,118880.0,1.61297222]
[1753699859886,0.51042942,118890.0,118880.0,1.61297222]
[1753699875394,0.57085181,118890.0,118880.0,1.61297222]
[1753699879299,0.58599213,118890.0,118880.0,1.61297222]
[1753699880801,0.51042942,118890.0,118880.0,1.61297222]
[1753699881202,0.51042942,118890.0,118880.0,1.57091662]
[1753699882402,0.57084609,118890.0,118880.0,1.57091662]
[1753699882704,0.51042942,118890.0,118880.0,1.57091662]
[1753699883201,0.57084609,118890.0,118880.0,1.57091662]
[1753699885406,0.51042942,118890.0,118880.0,1.57091662]
[1753699894704,0.57084609,118890.0,118880.0,1.57091662]
[1753699897112,0.51042942,118890.0,118880.0,1.57091662]
[1753699900719,0.51042942,118890.0,118880.0,0.82972762]
[1753699901013,0.85942594,118890.0,118880.0,1.23201367]
[1753699901412,0.85942594,118890.0,118880.0,1.48443748]
[1753699901608,0.60700213,118890.0,118880.0,1.48443748]
[1753699902910,0.60700213,118890.0,118880.0,0.80951748]
[1753699907824,0.58599213,118890.0,118880.0,0.80951748]
[1753699908923,0.58599213,118890.0,118880.0,0.78930613]
[1753699909122,0.58599213,118890.0,118880.0,0.82038613]
[1753699909925,0.57085323,118890.0,118880.0,0.82038613]
[1753699910124,0.61608323,118890.0,118880.0,0.82038613]
[1753699912828,0.55565942,118890.0,118880.0,0.82038613]
[1753699915335,0.51042942,118890.0,118880.0,0.82038613]
[1753699915535,0.57085323,118890.0,118880.0,0.82038613]
[1753699918227,0.61608323,118890.0,118880.0,0.82038613]
[1753699920631,0.61608323,118890.0,118880.0,0.98861473]
[1753699920938,0.57085323,118890.0,118880.0,0.98861473]
[1753699921136,0.57085323,118890.0,118880.0,0.82038613]
[1753699921337,0.57085323,118890.0,118880.0,0.98861463]
[1753699922443,0.57085323,118890.0,118880.0,0.82038613]
[1753699923134,0.51042942,118890.0,118880.0,0.82038613]
[1753699923336,0.51042942,118890.0,118880.0,0.98861473]
[1753699924848,0.57088183,118890.0,118880.0,0.98861473]
[1753699925449,0.51042942,118890.0,118880.0,0.98861473]
[1753699925648,0.58599213,118890.0,118880.0,0.98861473]
[1753699925849,0.31212213,118890.0,118880.0,1.24103854]
[1753699926049,0.23655942,118890.0,118880.0,1.24103854]
[1753699931158,0.23655942,118890.0,118880.0,0.99885622]
[1753699931455,0.36705942,118890.0,118880.0,0.99885622]
[1753699931661,0.49219942,118890.0,118880.0,0.99885622]
[1753699938260,0.56780786,118890.0,118880.0,0.99885622]
[1753699939456,0.56780786,118890.0,118880.0,0.97864524]
[1753699939457,0.49219942,118890.0,118880.0,0.97864524]
[1753699939760,0.55268583,118890.0,118880.0,0.97864524]
[1753699940360,0.58324583,118890.0,118880.0,0.97864524]
[1753699941562,0.88362964,118890.0,118880.0,0.81041664]
[1753699941861,0.57071942,118890.0,118880.0,1.48497664]
[1753699942161,0.57075942,118890.0,118880.0,1.48497664]
[1753699942366,0.63124302,118890.0,118880.0,1.65320524]
[1753699945367,0.63124302,118890.0,118880.0,1.48497664]
[1753699946862,0.63124302,118890.0,118880.0,0.98012902]
[1753699947059,0.63124302,118890.0,118880.0,1.48497664]
[1753699947870,0.57075942,118890.0,118880.0,1.48497664]
[1753699949970,0.64636743,118890.0,118880.0,1.48497664]
[1753699950566,0.64636743,118890.0,118880.0,1.65320514]
[1753699951669,0.57075942,118890.0,118880.0,1.48497664]
[1753699952271,0.57075942,118890.0,118880.0,1.65320514]
[1753699952472,0.57075942,118890.0,118880.0,1.48497664]
[1753699952666,0.57075942,118890.0,118880.0,1.65320514]
[1753699952865,0.64636743,118890.0,118880.0,1.65320514]
[1753699953066,0.57075942,118890.0,118880.0,1.65320514]
[1753699953266,0.70684026,118890.0,118880.0,1.65320514]
[1753699953566,0.63123225,118890.0,118880.0,1.65320514]
[1753699956371,0.63123225,118890.0,118880.0,1.48497664]
[1753699956764,0.63123225,118890.0,118880.0,1.65320524]
[1753699960576,0.63123225,118890.0,118880.0,1.48497664]
[1753699961776,0.63123225,118890.0,118880.0,1.65320514]
[1753699962781,0.64636743,118890.0,118880.0,1.65320514]
[1753699963078,0.64636743,118890.0,118880.0,1.48497664]
[1753699963281,0.64636743,118890.0,118880.0,1.65320504]
[1753699963479,0.64636743,118890.0,118880.0,1.48497664]
[1753699964471,0.57075942,118890.0,118880.0,1.63299329]
[1753699964670,0.67570814,118890.0,118880.0,1.63299329]
[1753699965678,0.57075942,118890.0,118880.0,1.35107309]
[1753699965870,0.57075942,118890.0,118880.0,1.51930159]
[1753699966783,0.64635239,118890.0,118880.0,1.51930159]
[1753699967467,0.64635239,118890.0,118880.0,1.62418159]
[1753699968881,0.64635239,118890.0,118880.0,1.45595309]
[1753699969280,0.64635239,118890.0,118880.0,1.62418169]
[1753699971382,0.57075942,118890.0,118880.0,1.62418169]
[1753699971782,0.7207576,118890.0,118880.0,1.62418169]
[1753699972482,0.7207576,118890.0,118880.0,1.60396984]
[1753699975085,0.3865976,118890.0,118880.0,1.85639365]
[1753699975385,0.49244631,118890.0,118880.0,1.85639365]
[1753699975582,0.39983781,118890.0,118880.0,1.85639365]
[1753699975780,0.06052472,118890.0,118880.0,1.85639365]
[1753699976080,0.0756459,118900.0,118880.0,2.19058886]
[1753699976284,0.0756459,118900.0,118890.0,0.92548583]
[1753699976285,4e-05,118900.0,118890.0,0.92548583]
[1753699977381,0.00204,118900.0,118890.0,0.92548583]
[1753699978189,4e-05,118900.0,118890.0,0.92548583]
[1753699978384,0.00304,118900.0,118890.0,0.92548583]
[1753699979186,0.00304,118900.0,118890.0,0.67306202]
[1753699980389,0.00304,118900.0,118890.0,0.68061114]
[1753699980584,0.1712403,118900.0,118890.0,0.67306202]
[1753699983295,0.1712403,118900.0,118890.0,0.70255202]
[1753699983496,0.2170903,118900.0,118890.0,0.70255202]
[1753699984296,0.04889,118900.0,118890.0,0.70255202]
[1753699987800,0.04889,118900.0,118890.0,0.72648086]
[1753699988997,0.4981402,118900.0,118890.0,0.72648086]
[1753699989703,0.32994,118900.0,118890.0,0.72648086]
[1753699991604,0.32994,118900.0,118890.0,0.22163324]
[1753699991804,0.32994,118900.0,118890.0,0.72648086]
[1753699993306,0.32994,118900.0,118890.0,0.70255202]
[1753699993706,0.4981402,118900.0,118890.0,0.70255202]
[1753699994607,0.32994,118900.0,118890.0,0.71988862]
[1753699995307,0.4981403,118900.0,118890.0,0.71988862]
[1753699999511,0.32994,118900.0,118890.0,0.71988862]
[1753700005116,0.4981402,118900.0,118890.0,0.71988862]
[1753700006613,0.32994,118900.0,118890.0,0.74390432]
[1753700015422,0.32994,118900.0,118890.0,0.71988862]
[1753700017211,0.10941265,118900.0,118890.0,0.97231243]
[1753700017412,4e-05,118910.0,118900.0,0.1952902]
[1753700017617,0.15175871,118920.0,118910.0,0.1681861]
[1753700017818,0.04591,118930.0,118910.0,0.81598483]
[1753700018018,0.04591,118930.0,118920.0,1.44551823]
[1753700018217,0.04591,118930.0,118920.0,1.48756013]
[1753700018728,0.04591,118930.0,118920.0,1.23513632]
[1753700019024,0.33953,118930.0,118920.0,1.23513632]
[1753700019325,0.34153,118930.0,118920.0,1.23513632]
[1753700022326,0.34153,118930.0,118920.0,1.25192632]
[1753700026424,0.34153,118930.0,118920.0,1.29346429]
[1753700027524,0.34153,118930.0,118920.0,1.26886146]
[1753700032834,0.76211161,118930.0,118920.0,1.26886146]
[1753700033536,0.59395381,118930.0,118920.0,1.26886146]
[1753700034935,0.59399381,118930.0,118920.0,1.26886146]
[1753700036732,0.04795,118930.0,118920.0,1.26886146]
[1753700044537,0.1433,118930.0,118920.0,1.26886146]
[1753700044738,0.28781,118930.0,118920.0,1.26886146]
[1753700045638,0.04795,118930.0,118920.0,1.26886146]
[1753700046440,0.04795,118930.0,118920.0,1.52128527]
[1753700046648,0.04795,118930.0,118920.0,1.54624451]
[1753700047244,0.04795,118930.0,118920.0,1.2938207]
[1753700052749,0.10829864,118930.0,118920.0,1.26886146]
[1753700055355,0.40574864,118930.0,118920.0,1.26886146]
[1753700055549,0.3454,118930.0,118920.0,1.29383729]
[1753700059155,0.40574864,118930.0,118920.0,1.26886146]
[1753700060867,0.3454,118930.0,118920.0,1.26886146]
[1753700063068,0.12611,118930.0,118920.0,1.26886146]
[1753700063264,0.04795,118930.0,118920.0,1.52128527]
[1753700063670,0.04795,118930.0,118920.0,1.54626178]
[1753700063864,0.10829864,118930.0,118920.0,1.52128527]
[1753700064260,0.04795,118930.0,118920.0,1.26886146]
[1753700064569,0.04795,118930.0,118920.0,1.52128527]
[1753700065670,0.04795,118930.0,118920.0,1.54625812]
[1753700090380,0.5115178,118930.0,118920.0,1.54616191]
[1753700090580,0.5115178,118930.0,118920.0,0.2522544]
[1753700090581,0.82429025,118930.0,118920.0,0.2522544]
[1753700090779,1.07671406,118930.0,118920.0,0.2102125]
[1753700091081,0.303332,118920.0,118910.0,0.2522632]
[1753700091281,0.5098961,118910.0,118900.0,0.2624836]
[1753700091481,0.76231991,118910.0,118900.0,1.18682741]
[1753700092084,0.76231991,118910.0,118900.0,1.21163697]
[1753700092279,0.76231991,118910.0,118900.0,1.18682741]
[1753700092884,0.5098961,118910.0,118900.0,0.9344036]
[1753700093384,0.51784978,118910.0,118900.0,0.9344036]
[1753700093578,0.51784978,118910.0,118900.0,0.2624836]
[1753700093779,0.5098961,118910.0,118900.0,0.9242036]
[1753700094385,0.5098961,118910.0,118900.0,0.9344036]
[1753700094984,0.5098961,118910.0,118900.0,0.9507236]
[1753700096983,0.57824229,118910.0,118900.0,0.9507236]
[1753700098079,0.51771625,118910.0,118900.0,0.9507236]
[1753700098281,0.5098961,118910.0,118900.0,0.9507236]
[1753700101685,0.51782997,118910.0,118900.0,0.9507236]
[1753700102084,0.68602997,118910.0,118900.0,0.2522836]
[1753700102288,1.02258485,118910.0,118900.0,0.2522836]
[1753700102890,0.68602997,118910.0,118900.0,0.2522836]
[1753700103583,0.68602997,118910.0,118900.0,0.1681867]
[1753700103790,0.5099102,118900.0,118890.0,0.9507514]
[1753700105493,0.57043624,118900.0,118890.0,0.9507514]
[1753700106194,0.57047624,118900.0,118890.0,0.9507514]
[1753700108196,0.5099502,118900.0,118890.0,0.9507514]
[1753700110687,0.3134545,118890.0,118880.0,0.0102]
[1753700110893,0.97266258,118890.0,118880.0,0.1784274]
[1753700111986,1.03966054,118890.0,118880.0,0.1784274]
[1753700113287,1.03970054,118890.0,118880.0,0.1784274]
[1753700115195,0.70314566,118890.0,118880.0,0.1784274]
[1753700116401,1.03970054,118890.0,118880.0,0.1682285]
[1753700116590,0.5112485,118880.0,118870.0,0.9732311]
[1753700116790,0.5112485,118880.0,118870.0,0.9844011]
[1753700117098,0.5112485,118880.0,118870.0,1.32095598]
[1753700118993,0.5112485,118880.0,118870.0,1.23689843]
[1753700118994,0.34302,118880.0,118870.0,1.23689843]
[1753700119195,0.04737,118880.0,118870.0,1.48939576]
[1753700119794,4e-05,118880.0,118870.0,1.50644527]
[1753700120294,0.04737,118880.0,118870.0,1.50644527]
[1753700120795,0.04737,118880.0,118870.0,1.36259581]
[1753700140816,0.04737,118880.0,118870.0,1.53090906]
[1753700141312,4e-05,118880.0,118870.0,1.80607735]
[1753700142820,4e-05,118880.0,118870.0,1.72182356]
[1753700143210,4e-05,118880.0,118870.0,1.38529851]
[1753700143716,4e-05,118880.0,118870.0,1.36256485]
[1753700144117,0.04873,118880.0,118870.0,1.36256485]
[1753700145019,0.04873,118880.0,118870.0,1.38529851]
[1753700145415,0.04873,118880.0,118870.0,1.65479851]
[1753700145618,0.04873,118880.0,118870.0,1.63206485]
[1753700152325,4e-05,118880.0,118870.0,1.9685899]
[1753700154225,0.04873,118880.0,118870.0,1.9685899]
[1753700154720,0.04873,118880.0,118870.0,1.94400071]
[1753700155629,0.04873,118880.0,118870.0,1.99154016]
[1753700157322,0.04873,118880.0,118870.0,1.65501511]
[1753700158230,0.04873,118880.0,118870.0,1.63228145]
[1753700160733,0.04873,118880.0,118870.0,1.65501511]
[1753700161030,0.04873,118880.0,118870.0,1.63228145]
[1753700163933,0.04873,118880.0,118870.0,1.65501511]
[1753700164929,4e-05,118880.0,118870.0,2.07567206]
[1753700165123,0.03736706,118890.0,118880.0,0.1781685]
[1753700165328,4e-05,118890.0,118880.0,1.74007195]
[1753700165529,4e-05,118890.0,118880.0,0.98288995]
[1753700166836,4e-05,118890.0,118880.0,0.89858233]
[1753700168439,0.06757353,118890.0,118880.0,0.89858233]
[1753700169041,0.06757353,118890.0,118880.0,1.16808233]
[1753700169444,0.11626353,118890.0,118880.0,1.16808233]
[1753700171245,0.06757353,118890.0,118880.0,1.16808233]
[1753700171641,0.04873,118900.0,118890.0,0.1743344]
[1753700171842,0.34848604,118920.0,118910.0,0.2521761]
[1753700172144,0.34848604,118920.0,118910.0,1.25965329]
[1753700172346,0.28796,118920.0,118910.0,1.25965329]
[1753700173945,0.33665,118920.0,118910.0,1.25965329]
[1753700174746,0.33665,118920.0,118910.0,1.26365329]
[1753700175750,0.39717604,118920.0,118910.0,1.2434493]
[1753700176045,0.06052604,118920.0,118910.0,1.2434493]
[1753700176247,0.13102,118920.0,118910.0,1.2434493]
[1753700176447,0.33807,118920.0,118910.0,1.2434493]
[1753700177239,0.33807,118920.0,118910.0,1.26812874]
[1753700177444,0.33807,118920.0,118910.0,1.26412874]
[1753700179752,0.33807,118920.0,118910.0,1.26411389]
[1753700179954,0.33807,118920.0,118910.0,1.2394493]
[1753700182558,0.33807,118920.0,118910.0,1.2392493]
[1753700182857,0.33807,118920.0,118910.0,1.20556329]
[1753700183154,0.506242,118920.0,118910.0,1.20552329]
[1753700183858,0.33807,118920.0,118910.0,1.20552329]
[1753700184361,0.5062419,118920.0,118910.0,1.20552329]
[1753700184751,0.84267909,118920.0,118910.0,0.8389861]
[1753700184952,0.90320513,118920.0,118910.0,0.8389861]
[1753700185450,0.56676794,118920.0,118910.0,0.8389861]
[1753700186965,0.56676794,118920.0,118910.0,1.17542329]
[1753700189862,0.56676794,118920.0,118910.0,0.8389861]
[1753700191157,0.5062419,118920.0,118910.0,0.8389861]
[1753700191360,0.5062419,118920.0,118910.0,0.8710061]
[1753700192565,0.5062419,118920.0,118910.0,1.20744329]
[1753700195560,0.56676794,118920.0,118910.0,1.20744329]
[1753700196466,0.5062419,118920.0,118910.0,1.20744329]
[1753700199563,0.58182851,118920.0,118910.0,1.20744329]
[1753700200765,0.58182851,118920.0,118910.0,1.12335334]
[1753700201165,0.5062419,118920.0,118910.0,1.12335334]
[1753700201870,0.75858914,118920.0,118910.0,1.12335334]
[1753700203174,0.81906041,118920.0,118910.0,1.12335334]
[1753700203368,0.81906041,118920.0,118910.0,1.15704334]
[1753700204067,0.56671317,118920.0,118910.0,1.15704334]
[1753700204267,0.81906041,118920.0,118910.0,1.15704334]
[1753700205763,0.75858914,118920.0,118910.0,1.15704334]
[1753700208871,0.5062419,118920.0,118910.0,1.15704334]
[1753700211980,0.5062419,118920.0,118910.0,1.12335334]
[1753700212179,0.75858914,118920.0,118910.0,1.12335334]
[1753700212978,0.75858914,118920.0,118910.0,1.15704334]
[1753700213176,0.75858914,118920.0,118910.0,1.12335334]
[1753700213581,0.75858914,118920.0,118910.0,1.15704334]
[1753700214175,0.81906041,118920.0,118910.0,1.15704334]
[1753700214570,0.75858914,118920.0,118910.0,1.15704334]
[1753700214773,0.81906041,118920.0,118910.0,1.15704334]
[1753700215876,0.56671317,118920.0,118910.0,1.15704334]
[1753700216076,0.5062419,118920.0,118910.0,1.15704334]
[1753700216785,0.75858914,118920.0,118910.0,1.15704334]
[1753700217083,0.5062419,118920.0,118910.0,1.18178241]
[1753700217282,0.75858914,118920.0,118910.0,1.18178241]
[1753700217682,1.07140765,118920.0,118910.0,0.45255334]
[1753700217881,1.07140765,118920.0,118910.0,0.8706461]
[1753700218082,1.07140765,118920.0,118910.0,1.12299334]
[1753700218384,0.81906041,118920.0,118910.0,1.12299334]
[1753700219684,0.81906041,118920.0,118910.0,0.45255334]
[1753700222295,0.75858914,118920.0,118910.0,0.45255334]
[1753700222494,0.81906041,118920.0,118910.0,0.45255334]
[1753700222987,0.75858914,118920.0,118910.0,0.45255334]
[1753700225191,0.81906041,118920.0,118910.0,0.45255334]
[1753700227994,0.56671317,118920.0,118910.0,0.45255334]
[1753700228194,0.81906041,118920.0,118910.0,0.45255334]
[1753700230295,0.75858914,118920.0,118910.0,0.45255334]
[1753700232891,0.5062419,118920.0,118910.0,0.45255334]
[1753700233198,0.75858914,118920.0,118910.0,0.45255334]
[1753700233389,0.81906041,118920.0,118910.0,0.45255334]
[1753700233789,0.56671317,118920.0,118910.0,0.2002061]
[1753700233988,0.81906041,118920.0,118910.0,0.45255334]
[1753700234995,0.81910041,118920.0,118910.0,0.45255334]
[1753700244293,0.75862914,118920.0,118910.0,0.45255334]
[1753700244900,0.5062819,118920.0,118910.0,0.45255334]
[1753700245100,0.75862914,118920.0,118910.0,0.45255334]
[1753700248406,0.75862914,118920.0,118910.0,0.2002061]
[1753700248606,0.75862914,118920.0,118910.0,0.45255334]
[1753700251811,0.83421575,118920.0,118910.0,0.45255334]
[1753700253612,0.75862914,118920.0,118910.0,0.45255334]
[1753700254009,0.83421575,118920.0,118910.0,0.45255334]
[1753700254210,0.75862914,118920.0,118910.0,0.45255334]